[Event "*** Titled Tuesday Blitz"]
[Site "Chess.com"]
[Date "2020.01.07"]
[Round "1"]
[White "muran29"]
[Black "wonderfultime"]
[Result "0-1"]
[WhiteElo "2502"]
[BlackElo "2964"]
[TimeControl "180+2"]
[EndTime "13:07:43 PST"]
[Termination "wonderfultime won by resignation"]

1. d4 {[%clk 0:02:59.6]} 1... d5 {[%clk 0:02:59.3]} 2. c4 {[%clk 0:02:54.7]}
2... c6 {[%clk 0:03:00.3]} 3. cxd5 {[%clk 0:02:54.2]} 3... cxd5 {[%clk
0:03:01.5]} 4. Nc3 {[%clk 0:02:56.1]} 4... Nf6 {[%clk 0:03:01.6]} 5. Bf4 {[%clk
0:02:55]} 5... Nc6 {[%clk 0:03:02.2]} 6. e3 {[%clk 0:02:55.6]} 6... Bf5 {[%clk
0:03:03.7]} 7. Nf3 {[%clk 0:02:56.6]} 7... e6 {[%clk 0:03:01.4]} 8. Ne5 {[%clk
0:02:58]} 8... Nxe5 {[%clk 0:02:54.2]} 9. Bxe5 {[%clk 0:02:59.9]} 9... Nd7
{[%clk 0:02:55.6]} 10. Bg3 {[%clk 0:03:00.6]} 10... Bb4 {[%clk 0:02:52.4]} 11.
Bb5 {[%clk 0:02:55.7]} 11... O-O {[%clk 0:02:40.2]} 12. O-O {[%clk 0:02:51.3]}
12... Rc8 {[%clk 0:02:28.9]} 13. Rc1 {[%clk 0:02:49.3]} 13... Bxc3 {[%clk
0:02:24.7]} 14. Rxc3 {[%clk 0:02:48.6]} 14... Rxc3 {[%clk 0:02:25.3]} 15. bxc3
{[%clk 0:02:50.5]} 15... Nb6 {[%clk 0:02:27.1]} 16. Qb3 {[%clk 0:02:42.6]} 16...
Qe7 {[%clk 0:02:27.1]} 17. c4 {[%clk 0:02:40.9]} 17... dxc4 {[%clk 0:02:18.5]}
18. Bxc4 {[%clk 0:02:42.8]} 18... Rc8 {[%clk 0:02:20.1]} 19. Bd3 {[%clk
0:02:43]} 19... Bxd3 {[%clk 0:02:19.9]} 20. Qxd3 {[%clk 0:02:44.9]} 20... Qb4
{[%clk 0:02:20.7]} 21. h3 {[%clk 0:02:43.4]} 21... h6 {[%clk 0:02:20.4]} 22. Qe4
{[%clk 0:02:44.6]} 22... Nd5 {[%clk 0:02:19]} 23. Rb1 {[%clk 0:02:45.3]} 23...
Qe7 {[%clk 0:02:04.6]} 24. Bh4 {[%clk 0:02:39.5]} 24... Qd7 {[%clk 0:02:04.8]}
25. Qg4 {[%clk 0:02:36.4]} 25... b6 {[%clk 0:01:43.5]} 26. Re1 {[%clk
0:02:36.7]} 26... f5 {[%clk 0:01:33.9]} 27. Qf3 {[%clk 0:02:34.7]} 27... Nc3
{[%clk 0:01:33.7]} 28. g4 {[%clk 0:02:31.4]} 28... Qd5 {[%clk 0:01:31.2]} 29.
Qxd5 {[%clk 0:02:27.9]} 29... Nxd5 {[%clk 0:01:33.1]} 30. e4 {[%clk 0:02:28.2]}
30... fxe4 {[%clk 0:01:33.7]} 31. Rxe4 {[%clk 0:02:30.1]} 31... Kf7 {[%clk
0:01:34.2]} 32. Re2 {[%clk 0:02:26.4]} 32... Rc1+ {[%clk 0:01:34.6]} 33. Kh2
{[%clk 0:02:27.1]} 33... b5 {[%clk 0:01:29.4]} 34. Bg3 {[%clk 0:02:28]} 34... b4
{[%clk 0:01:29.9]} 35. Bd6 {[%clk 0:02:18.9]} 35... a5 {[%clk 0:01:30.3]} 36.
Rb2 {[%clk 0:02:16.6]} 36... Rc4 {[%clk 0:01:24]} 37. Be5 {[%clk 0:02:16.8]}
37... a4 {[%clk 0:01:23.5]} 38. f4 {[%clk 0:02:16.7]} 38... a3 {[%clk
0:01:23.1]} 39. Rf2 {[%clk 0:02:16.4]} 39... Ne3 {[%clk 0:01:19.8]} 40. Kg3
{[%clk 0:02:10.4]} 40... Rc3 {[%clk 0:01:16.7]} 41. Rf3 {[%clk 0:02:04.3]} 41...
Nd5 {[%clk 0:01:14.4]} 42. Rxc3 {[%clk 0:01:48.8]} 42... Nxc3 {[%clk 0:01:11.5]}
43. Bd6 {[%clk 0:01:45.5]} 43... Nxa2 {[%clk 0:01:09.5]} 44. Kf3 {[%clk
0:01:46.6]} 44... g6 {[%clk 0:01:04.4]} 45. h4 {[%clk 0:01:36.3]} 45... h5
{[%clk 0:01:05.5]} 46. g5 {[%clk 0:01:35.3]} 46... Ke8 {[%clk 0:01:06]} 47. Bc5
{[%clk 0:01:20.6]} 47... Kd7 {[%clk 0:01:06]} 48. Kf2 {[%clk 0:01:16.7]} 48...
Nc1 {[%clk 0:01:03.1]} 49. Bxb4 {[%clk 0:01:02.9]} 49... Nd3+ {[%clk 0:01:04]}
0-1

[Event "*** Titled Tuesday Blitz"]
[Site "Chess.com"]
[Date "2020.01.07"]
[Round "1"]
[White "wannabe2700"]
[Black "Orest_Vovk"]
[Result "0-1"]
[WhiteElo "2760"]
[BlackElo "2418"]
[TimeControl "180+2"]
[EndTime "13:07:52 PST"]
[Termination "Orest_Vovk won by resignation"]

1. e4 {[%clk 0:02:58.2]} 1... Nc6 {[%clk 0:02:58.7]} 2. Nf3 {[%clk 0:02:58.7]}
2... f5 {[%clk 0:02:59]} 3. exf5 {[%clk 0:02:59.4]} 3... d5 {[%clk 0:03:00.3]}
4. d4 {[%clk 0:02:50.4]} 4... Bxf5 {[%clk 0:03:01.1]} 5. Bb5 {[%clk 0:02:52.2]}
5... Nf6 {[%clk 0:02:57.9]} 6. Ne5 {[%clk 0:02:53]} 6... Qd6 {[%clk 0:02:58.8]}
7. O-O {[%clk 0:02:53]} 7... Nd7 {[%clk 0:02:56.3]} 8. Bf4 {[%clk 0:02:51.8]}
8... Ndxe5 {[%clk 0:02:55.8]} 9. Bxe5 {[%clk 0:02:52.7]} 9... Qg6 {[%clk
0:02:56.9]} 10. c4 {[%clk 0:02:50.1]} 10... O-O-O {[%clk 0:02:51.6]} 11. cxd5
{[%clk 0:02:40.4]} 11... Nxe5 {[%clk 0:02:39]} 12. dxe5 {[%clk 0:02:41.3]} 12...
Be4 {[%clk 0:02:37.7]} 13. f3 {[%clk 0:02:40.6]} 13... Rxd5 {[%clk 0:02:24.7]}
14. Qb3 {[%clk 0:02:41.2]} 14... Qb6+ {[%clk 0:02:17.8]} 15. Kh1 {[%clk
0:02:35.3]} 15... Rxb5 {[%clk 0:02:14.5]} 16. Qf7 {[%clk 0:02:28.9]} 16... Bc6
{[%clk 0:02:08.2]} 17. Nc3 {[%clk 0:02:28.2]} 17... Rxe5 {[%clk 0:01:52.1]} 18.
Rad1 {[%clk 0:02:27.3]} 18... Qxb2 {[%clk 0:01:38.4]} 19. Nd5 {[%clk 0:02:23.1]}
19... Qb5 {[%clk 0:01:06.2]} 20. Nf4 {[%clk 0:02:04.5]} 20... a6 {[%clk
0:00:37.7]} 21. Ne6 {[%clk 0:02:03.8]} 21... Rxe6 {[%clk 0:00:18.9]} 22. Qxe6+
{[%clk 0:02:04.8]} 22... Bd7 {[%clk 0:00:20.4]} 23. Qe3 {[%clk 0:01:54.7]} 23...
b6 {[%clk 0:00:06.5]} 24. Qe4 {[%clk 0:01:51.8]} 24... Qc6 {[%clk 0:00:06.8]}
25. Qe5 {[%clk 0:01:50.2]} 25... e6 {[%clk 0:00:07.3]} 26. Rc1 {[%clk
0:01:50.3]} 26... Qd6 {[%clk 0:00:06.7]} 27. Qe4 {[%clk 0:01:51.4]} 27... Qd5
{[%clk 0:00:07.9]} 28. Qe3 {[%clk 0:01:49.4]} 28... Bc5 {[%clk 0:00:08.4]} 29.
Qe2 {[%clk 0:01:47.8]} 29... Bb5 {[%clk 0:00:06.3]} 30. Qb2 {[%clk 0:01:42.4]}
30... Bxf1 {[%clk 0:00:06.5]} 31. Rxf1 {[%clk 0:01:42.4]} 31... Qd4 {[%clk
0:00:07.7]} 32. Qb3 {[%clk 0:01:42.8]} 32... Rd8 {[%clk 0:00:08]} 33. Qxe6+
{[%clk 0:01:43.7]} 33... Kb7 {[%clk 0:00:09.5]} 34. h3 {[%clk 0:01:44]} 34... g5
{[%clk 0:00:10.1]} 35. Qh6 {[%clk 0:01:42.9]} 35... Qd3 {[%clk 0:00:10.2]} 36.
Rc1 {[%clk 0:01:42.9]} 36... Qg6 {[%clk 0:00:11.2]} 37. Qxg6 {[%clk 0:01:43.3]}
37... hxg6 {[%clk 0:00:13.1]} 38. g3 {[%clk 0:01:45]} 38... Be3 {[%clk
0:00:13.9]} 39. Rc3 {[%clk 0:01:45.7]} 39... Bd2 {[%clk 0:00:14.5]} 40. Rc4
{[%clk 0:01:46]} 40... c5 {[%clk 0:00:15.5]} 41. h4 {[%clk 0:01:46.8]} 41...
gxh4 {[%clk 0:00:15.8]} 42. Rxh4 {[%clk 0:01:46.6]} 42... b5 {[%clk 0:00:16.1]}
43. Rg4 {[%clk 0:01:47]} 43... Rd6 {[%clk 0:00:16.8]} 44. Kg2 {[%clk 0:01:45]}
44... c4 {[%clk 0:00:17.9]} 45. Kf2 {[%clk 0:01:46.3]} 45... c3 {[%clk
0:00:19.1]} 46. Ke2 {[%clk 0:01:47.4]} 46... c2 {[%clk 0:00:19.8]} 47. Rd4
{[%clk 0:01:47.8]} 47... Rxd4 {[%clk 0:00:20.2]} 0-1

[Event "*** Titled Tuesday Blitz"]
[Site "Chess.com"]
[Date "2020.01.07"]
[Round "1"]
[White "Atakishiyev04"]
[Black "pedromartinez91"]
[Result "1-0"]
[WhiteElo "2721"]
[BlackElo "2360"]
[TimeControl "180+2"]
[EndTime "13:07:52 PST"]
[Termination "Atakishiyev04 won by checkmate"]

1. d4 {[%clk 0:03:01.5]} 1... Nf6 {[%clk 0:03:00.3]} 2. c4 {[%clk 0:03:01.6]}
2... e6 {[%clk 0:03:01.5]} 3. Nf3 {[%clk 0:03:02.4]} 3... c5 {[%clk 0:03:02.6]}
4. d5 {[%clk 0:02:58.3]} 4... exd5 {[%clk 0:03:04.5]} 5. cxd5 {[%clk 0:02:58.8]}
5... Bd6 {[%clk 0:03:06.1]} 6. Nc3 {[%clk 0:02:59.7]} 6... O-O {[%clk 0:03:07]}
7. Nd2 {[%clk 0:03:00.1]} 7... Be5 {[%clk 0:03:03.2]} 8. e4 {[%clk 0:02:43.7]}
8... Re8 {[%clk 0:03:03]} 9. Be2 {[%clk 0:02:41.7]} 9... d6 {[%clk 0:02:39.1]}
10. O-O {[%clk 0:02:26]} 10... Nbd7 {[%clk 0:02:09.8]} 11. f3 {[%clk 0:02:24.2]}
11... Bd4+ {[%clk 0:02:04]} 12. Kh1 {[%clk 0:02:23.4]} 12... Nh5 {[%clk
0:02:05.6]} 13. Nc4 {[%clk 0:02:20.3]} 13... Nb6 {[%clk 0:01:55.6]} 14. Nb5
{[%clk 0:02:16.4]} 14... Nxc4 {[%clk 0:01:41.5]} 15. Bxc4 {[%clk 0:02:18.3]}
15... Bf6 {[%clk 0:01:25.2]} 16. g4 {[%clk 0:01:19.4]} 16... a6 {[%clk
0:01:20.4]} 17. Nc3 {[%clk 0:01:20.3]} 17... b5 {[%clk 0:01:21.5]} 18. Bd3
{[%clk 0:01:19.7]} 18... c4 {[%clk 0:01:16.7]} 19. Bc2 {[%clk 0:01:17]} 19... b4
{[%clk 0:00:44.1]} 20. Ne2 {[%clk 0:01:14.8]} 20... c3 {[%clk 0:00:12.5]} 21.
bxc3 {[%clk 0:01:08.9]} 21... Be5 {[%clk 0:00:11.7]} 22. gxh5 {[%clk 0:00:57.1]}
22... Qh4 {[%clk 0:00:12]} 23. f4 {[%clk 0:00:58]} 23... Bf6 {[%clk 0:00:12.8]}
24. Be3 {[%clk 0:00:55.8]} 24... Bg4 {[%clk 0:00:11.4]} 25. Qd3 {[%clk 0:00:40]}
25... Rac8 {[%clk 0:00:10.7]} 26. e5 {[%clk 0:00:38.8]} 26... dxe5 {[%clk
0:00:08.2]} 27. Qxh7+ {[%clk 0:00:20.9]} 27... Kf8 {[%clk 0:00:09.1]} 28. d6
{[%clk 0:00:14.6]} 28... Bxe2 {[%clk 0:00:06.5]} 29. Qh8# {[%clk 0:00:14.9]} 1-0

[Event "*** Titled Tuesday Blitz"]
[Site "Chess.com"]
[Date "2020.01.07"]
[Round "1"]
[White "BilodeauA"]
[Black "TwentyHoursADay"]
[Result "1-0"]
[WhiteElo "2794"]
[BlackElo "2409"]
[TimeControl "180+2"]
[EndTime "13:07:53 PST"]
[Termination "BilodeauA won by resignation"]

1. e4 {[%clk 0:03:00.5]} 1... c5 {[%clk 0:02:52.8]} 2. Nf3 {[%clk 0:02:58.5]}
2... e6 {[%clk 0:02:53.7]} 3. d4 {[%clk 0:02:59.6]} 3... cxd4 {[%clk 0:02:54.8]}
4. Nxd4 {[%clk 0:03:01.5]} 4... a6 {[%clk 0:02:53.2]} 5. Nc3 {[%clk 0:03:02.5]}
5... Qc7 {[%clk 0:02:53.4]} 6. Be2 {[%clk 0:03:03.2]} 6... Nf6 {[%clk
0:02:54.4]} 7. O-O {[%clk 0:03:04.3]} 7... Nc6 {[%clk 0:02:54.9]} 8. Be3 {[%clk
0:03:02.6]} 8... h5 {[%clk 0:02:55.7]} 9. f3 {[%clk 0:02:53.7]} 9... Bd6 {[%clk
0:02:33.4]} 10. f4 {[%clk 0:02:21.8]} 10... Bc5 {[%clk 0:02:22.6]} 11. Qd2
{[%clk 0:02:20.5]} 11... Ng4 {[%clk 0:02:10.4]} 12. Bxg4 {[%clk 0:02:18.2]}
12... hxg4 {[%clk 0:02:11.9]} 13. Rad1 {[%clk 0:02:15.6]} 13... b5 {[%clk
0:01:56.9]} 14. Nb3 {[%clk 0:01:59.7]} 14... Bxe3+ {[%clk 0:01:32.8]} 15. Qxe3
{[%clk 0:02:00.1]} 15... b4 {[%clk 0:01:34.4]} 16. Ne2 {[%clk 0:01:59.8]} 16...
d6 {[%clk 0:01:05.7]} 17. Qg3 {[%clk 0:01:58.9]} 17... Bb7 {[%clk 0:00:51.5]}
18. Qxg4 {[%clk 0:01:57.4]} 18... O-O-O {[%clk 0:00:52.6]} 19. c3 {[%clk
0:01:38.8]} 19... Rh6 {[%clk 0:00:47.4]} 20. Qf3 {[%clk 0:01:20.4]} 20... Rdh8
{[%clk 0:00:48]} 21. h3 {[%clk 0:01:20.1]} 21... a5 {[%clk 0:00:41.3]} 22. cxb4
{[%clk 0:01:20.3]} 22... axb4 {[%clk 0:00:42]} 23. Rc1 {[%clk 0:01:21.1]} 23...
Kb8 {[%clk 0:00:42.9]} 24. Qe3 {[%clk 0:01:15.8]} 24... Rg6 {[%clk 0:00:38.7]}
25. a3 {[%clk 0:01:13.9]} 25... bxa3 {[%clk 0:00:35.1]} 26. bxa3 {[%clk
0:01:15.8]} 26... f5 {[%clk 0:00:24.2]} 27. Rb1 {[%clk 0:01:16.5]} 27... fxe4
{[%clk 0:00:23.4]} 28. Rfc1 {[%clk 0:01:15.1]} 28... Qd7 {[%clk 0:00:17.8]} 29.
Rxc6 {[%clk 0:01:06.3]} 29... Qxc6 {[%clk 0:00:14.2]} 30. Na5 {[%clk 0:01:06.5]}
30... Qc2 {[%clk 0:00:13.1]} 31. Rxb7+ {[%clk 0:01:03]} 31... Kc8 {[%clk
0:00:14.6]} 32. Rb8+ {[%clk 0:00:53.1]} 32... Kxb8 {[%clk 0:00:09]} 33. Qb6+
{[%clk 0:00:54]} 33... Kc8 {[%clk 0:00:10.9]} 34. Qb7+ {[%clk 0:00:55.3]} 34...
Kd8 {[%clk 0:00:12.5]} 35. Nc6+ {[%clk 0:00:54.2]} 1-0

[Event "*** Titled Tuesday Blitz"]
[Site "Chess.com"]
[Date "2020.01.07"]
[Round "1"]
[White "GMHess"]
[Black "Korona_91"]
[Result "1-0"]
[WhiteElo "2744"]
[BlackElo "2379"]
[TimeControl "180+2"]
[EndTime "13:07:54 PST"]
[Termination "GMHess won by resignation"]

1. a3 {[%clk 0:03:00]} 1... g6 {[%clk 0:03:00]} 2. h3 {[%clk 0:02:50]} 2... Bg7
{[%clk 0:03:00.8]} 3. d3 {[%clk 0:02:50.8]} 3... d6 {[%clk 0:03:01.9]} 4. g4
{[%clk 0:02:51.7]} 4... e5 {[%clk 0:03:02.4]} 5. Bg2 {[%clk 0:02:52.8]} 5... Nc6
{[%clk 0:03:01.3]} 6. c4 {[%clk 0:02:53.1]} 6... Nge7 {[%clk 0:03:01.2]} 7. Nc3
{[%clk 0:02:54.4]} 7... f5 {[%clk 0:03:02.6]} 8. gxf5 {[%clk 0:02:52.7]} 8...
Bxf5 {[%clk 0:03:02.4]} 9. b4 {[%clk 0:02:36.4]} 9... Rb8 {[%clk 0:03:02.1]} 10.
b5 {[%clk 0:02:24.7]} 10... Nd4 {[%clk 0:03:02.6]} 11. e3 {[%clk 0:02:22.9]}
11... Ne6 {[%clk 0:03:00.2]} 12. e4 {[%clk 0:02:23.8]} 12... Nf4 {[%clk
0:03:01.6]} 13. Bxf4 {[%clk 0:02:03.2]} 13... exf4 {[%clk 0:03:02.3]} 14. Nge2
{[%clk 0:02:04.7]} 14... Be6 {[%clk 0:02:53.9]} 15. Qb3 {[%clk 0:01:21.8]} 15...
O-O {[%clk 0:02:53.4]} 16. Bf3 {[%clk 0:01:22.2]} 16... g5 {[%clk 0:02:50.3]}
17. O-O-O {[%clk 0:01:09.9]} 17... Ng6 {[%clk 0:02:49.2]} 18. d4 {[%clk
0:00:50.4]} 18... Nh4 {[%clk 0:02:45.8]} 19. Bg4 {[%clk 0:00:46.1]} 19... Bxg4
{[%clk 0:02:44]} 20. hxg4 {[%clk 0:00:48]} 20... c6 {[%clk 0:02:39.6]} 21. Rh3
{[%clk 0:00:37.6]} 21... Kh8 {[%clk 0:02:36]} 22. Rdh1 {[%clk 0:00:32.4]} 22...
Qd7 {[%clk 0:02:29.3]} 23. f3 {[%clk 0:00:28.7]} 23... c5 {[%clk 0:02:22.2]} 24.
dxc5 {[%clk 0:00:25.1]} 24... dxc5 {[%clk 0:02:21.7]} 25. Nd5 {[%clk 0:00:26.5]}
25... Qd6 {[%clk 0:02:22]} 26. Kc2 {[%clk 0:00:23.1]} 26... Qe5 {[%clk
0:02:17.9]} 27. Rxh4 {[%clk 0:00:17.6]} 27... gxh4 {[%clk 0:02:18.3]} 28. Rxh4
{[%clk 0:00:19.5]} 28... b6 {[%clk 0:02:11.9]} 29. Rh5 {[%clk 0:00:20.3]} 29...
Qa1 {[%clk 0:02:10.3]} 30. Nexf4 {[%clk 0:00:19.2]} 30... Rxf4 {[%clk
0:02:02.6]} 31. Nxf4 {[%clk 0:00:19.9]} 31... Qf1 {[%clk 0:02:03.1]} 32. Qd3
{[%clk 0:00:12.7]} 32... Qf2+ {[%clk 0:02:02.7]} 33. Qd2 {[%clk 0:00:07.7]}
33... Qxd2+ {[%clk 0:01:46.3]} 34. Kxd2 {[%clk 0:00:09.6]} 34... Kg8 {[%clk
0:01:47.9]} 35. Nd5 {[%clk 0:00:09.8]} 35... Rf8 {[%clk 0:01:48.8]} 36. f4
{[%clk 0:00:09.3]} 36... h6 {[%clk 0:01:48.9]} 37. e5 {[%clk 0:00:09.8]} 37...
Rd8 {[%clk 0:01:46.1]} 38. Ke3 {[%clk 0:00:09.9]} 38... Kf7 {[%clk 0:01:47.5]}
39. Ke4 {[%clk 0:00:10.8]} 39... a6 {[%clk 0:01:46.6]} 40. f5 {[%clk 0:00:09.3]}
40... axb5 {[%clk 0:01:47.5]} 41. e6+ {[%clk 0:00:10.8]} 41... Kg8 {[%clk
0:01:44.8]} 42. f6 {[%clk 0:00:12.1]} 42... Bxf6 {[%clk 0:01:41.4]} 43. Nxf6+
{[%clk 0:00:14]} 43... Kg7 {[%clk 0:01:43]} 44. e7 {[%clk 0:00:13.4]} 44... Rd4+
{[%clk 0:01:43.8]} 45. Kf5 {[%clk 0:00:12.5]} 45... bxc4 {[%clk 0:01:38.6]} 1-0

[Event "*** Titled Tuesday Blitz"]
[Site "Chess.com"]
[Date "2020.01.07"]
[Round "1"]
[White "Borsuk_Konstantin"]
[Black "MITerryble"]
[Result "0-1"]
[WhiteElo "2482"]
[BlackElo "2928"]
[TimeControl "180+2"]
[EndTime "13:07:57 PST"]
[Termination "MITerryble won on time"]

1. d4 {[%clk 0:02:57.5]} 1... e6 {[%clk 0:02:59.9]} 2. c4 {[%clk 0:02:56.6]}
2... Bb4+ {[%clk 0:03:00.7]} 3. Nc3 {[%clk 0:02:56.4]} 3... c5 {[%clk
0:03:01.2]} 4. dxc5 {[%clk 0:02:56.6]} 4... Bxc3+ {[%clk 0:03:02]} 5. bxc3
{[%clk 0:02:57.1]} 5... Qa5 {[%clk 0:03:03.6]} 6. Nf3 {[%clk 0:02:27.8]} 6...
Nf6 {[%clk 0:03:01.4]} 7. Qc2 {[%clk 0:02:10]} 7... Na6 {[%clk 0:03:00.5]} 8.
Nd4 {[%clk 0:01:57.4]} 8... Nxc5 {[%clk 0:02:59.3]} 9. f3 {[%clk 0:01:49.7]}
9... b6 {[%clk 0:02:54.8]} 10. e4 {[%clk 0:01:37.9]} 10... O-O {[%clk
0:02:55.8]} 11. Rb1 {[%clk 0:01:21.2]} 11... Ba6 {[%clk 0:02:56.5]} 12. Nb3
{[%clk 0:01:20.9]} 12... Qa4 {[%clk 0:02:57.6]} 13. Nd4 {[%clk 0:01:05.5]} 13...
Rfc8 {[%clk 0:02:55.5]} 14. Bd2 {[%clk 0:00:58]} 14... Ne8 {[%clk 0:02:49.7]}
15. Rb4 {[%clk 0:00:51.3]} 15... Qxc2 {[%clk 0:02:44.6]} 16. Nxc2 {[%clk
0:00:53.2]} 16... Nb7 {[%clk 0:02:44.8]} 17. Ra4 {[%clk 0:00:48.8]} 17... Na5
{[%clk 0:02:45.2]} 18. Ne3 {[%clk 0:00:40.7]} 18... Nd6 {[%clk 0:02:46]} 19. c5
{[%clk 0:00:41.5]} 19... Bxf1 {[%clk 0:02:47.1]} 20. cxd6 {[%clk 0:00:41.5]}
20... Bb5 {[%clk 0:02:43.6]} 21. Rb4 {[%clk 0:00:42]} 21... Ba6 {[%clk
0:02:44.9]} 22. e5 {[%clk 0:00:30.5]} 22... Rc5 {[%clk 0:02:45]} 23. f4 {[%clk
0:00:31.5]} 23... f6 {[%clk 0:02:46.5]} 24. exf6 {[%clk 0:00:30.9]} 24... gxf6
{[%clk 0:02:48.4]} 25. g4 {[%clk 0:00:27.9]} 25... Kf7 {[%clk 0:02:47.4]} 26. h4
{[%clk 0:00:26.2]} 26... Rc6 {[%clk 0:02:44.8]} 27. Rd4 {[%clk 0:00:25.9]} 27...
Nb7 {[%clk 0:02:46]} 28. g5 {[%clk 0:00:22.3]} 28... Rxd6 {[%clk 0:02:47.2]} 29.
Ng4 {[%clk 0:00:20.7]} 29... Rxd4 {[%clk 0:02:24.7]} 30. cxd4 {[%clk 0:00:22.6]}
30... fxg5 {[%clk 0:02:18.3]} 31. hxg5 {[%clk 0:00:21.8]} 31... Rh8 {[%clk
0:02:19.4]} 32. Nf6 {[%clk 0:00:18.8]} 32... Bb5 {[%clk 0:02:20.7]} 33. Rxh7+
{[%clk 0:00:15.8]} 33... Rxh7 {[%clk 0:02:21.9]} 34. Nxh7 {[%clk 0:00:17.7]}
34... Nd6 {[%clk 0:02:23.7]} 35. Nf6 {[%clk 0:00:17.7]} 35... Kg6 {[%clk
0:02:23]} 36. Bb4 {[%clk 0:00:15.5]} 36... Nc4 {[%clk 0:02:19.4]} 37. Kf2 {[%clk
0:00:14.8]} 37... Bc6 {[%clk 0:02:19.4]} 38. Kg3 {[%clk 0:00:11.4]} 38... Ne3
{[%clk 0:02:19.2]} 39. Bc3 {[%clk 0:00:07.5]} 39... a5 {[%clk 0:02:19.5]} 40.
Ng4 {[%clk 0:00:08.1]} 40... Nd5 {[%clk 0:02:15.7]} 41. Bb2 {[%clk 0:00:06.8]}
41... Kf5 {[%clk 0:02:16.2]} 42. Nh6+ {[%clk 0:00:07.6]} 42... Ke4 {[%clk
0:02:16.2]} 43. g6 {[%clk 0:00:08.1]} 43... Nxf4 {[%clk 0:02:17.5]} 44. g7
{[%clk 0:00:09.2]} 44... Nh5+ {[%clk 0:02:18.9]} 45. Kf2 {[%clk 0:00:09]} 45...
Nxg7 {[%clk 0:02:20.3]} 46. d5 {[%clk 0:00:10.5]} 46... Bxd5 {[%clk 0:02:19.7]}
47. Bxg7 {[%clk 0:00:11.5]} 47... Bxa2 {[%clk 0:02:21.6]} 48. Ke2 {[%clk
0:00:12]} 48... e5 {[%clk 0:02:11.3]} 49. Ng4 {[%clk 0:00:11.4]} 49... d6 {[%clk
0:02:12.4]} 50. Nf6+ {[%clk 0:00:08.8]} 50... Kf5 {[%clk 0:02:13.2]} 51. Nd7
{[%clk 0:00:09.6]} 51... b5 {[%clk 0:02:13.4]} 52. Ke3 {[%clk 0:00:07.4]} 52...
a4 {[%clk 0:02:12.5]} 53. Nb6 {[%clk 0:00:05.2]} 53... Bf7 {[%clk 0:02:09.8]}
54. Bf8 {[%clk 0:00:05.7]} 54... a3 {[%clk 0:02:09.6]} 0-1

[Event "*** Titled Tuesday Blitz"]
[Site "Chess.com"]
[Date "2020.01.07"]
[Round "1"]
[White "Rhinos1"]
[Black "vova-79"]
[Result "1/2-1/2"]
[WhiteElo "2135"]
[BlackElo "2545"]
[TimeControl "180+2"]
[EndTime "13:07:57 PST"]
[Termination "Game drawn by stalemate"]

1. e4 {[%clk 0:03:00.3]} 1... e6 {[%clk 0:02:59.7]} 2. d3 {[%clk 0:03:01.1]}
2... d5 {[%clk 0:03:00.3]} 3. Nd2 {[%clk 0:03:02.5]} 3... Nf6 {[%clk 0:03:00.8]}
4. g3 {[%clk 0:03:00.7]} 4... c5 {[%clk 0:02:56.9]} 5. Bg2 {[%clk 0:03:01.5]}
5... g6 {[%clk 0:02:57.4]} 6. Ngf3 {[%clk 0:03:02.1]} 6... Bg7 {[%clk
0:02:58.2]} 7. O-O {[%clk 0:03:03.1]} 7... O-O {[%clk 0:02:59.5]} 8. c3 {[%clk
0:03:01.8]} 8... Nc6 {[%clk 0:03:00.4]} 9. Re1 {[%clk 0:03:02.1]} 9... a5 {[%clk
0:03:00.9]} 10. Nf1 {[%clk 0:03:00.8]} 10... b5 {[%clk 0:02:55.4]} 11. h3 {[%clk
0:03:00.8]} 11... b4 {[%clk 0:02:55]} 12. e5 {[%clk 0:02:58.5]} 12... Nd7 {[%clk
0:02:53.8]} 13. d4 {[%clk 0:02:57.9]} 13... Ba6 {[%clk 0:02:43.2]} 14. g4 {[%clk
0:02:53.6]} 14... bxc3 {[%clk 0:02:35.4]} 15. bxc3 {[%clk 0:02:54]} 15... cxd4
{[%clk 0:02:35.8]} 16. cxd4 {[%clk 0:02:54.5]} 16... Nb4 {[%clk 0:02:34.5]} 17.
Bg5 {[%clk 0:02:26.4]} 17... Qc7 {[%clk 0:02:27.5]} 18. Be7 {[%clk 0:01:44.6]}
18... Rfc8 {[%clk 0:02:23.3]} 19. Bxb4 {[%clk 0:01:38]} 19... axb4 {[%clk
0:02:22.4]} 20. N1d2 {[%clk 0:01:24.3]} 20... Qc2 {[%clk 0:01:56.2]} 21. Nb3
{[%clk 0:01:12.6]} 21... Bb5 {[%clk 0:01:36.6]} 22. Ng5 {[%clk 0:00:39.5]} 22...
Bh6 {[%clk 0:01:23.7]} 23. h4 {[%clk 0:00:30.6]} 23... Rxa2 {[%clk 0:01:20.5]}
24. Rxa2 {[%clk 0:00:26.4]} 24... Qxa2 {[%clk 0:01:19.5]} 25. Qf3 {[%clk
0:00:17.1]} 25... Bxg5 {[%clk 0:01:18.6]} 26. hxg5 {[%clk 0:00:17.1]} 26... Rc3
{[%clk 0:01:17.9]} 27. Re3 {[%clk 0:00:17.6]} 27... Qxb3 {[%clk 0:01:17.5]} 28.
Bf1 {[%clk 0:00:08.6]} 28... Qb1 {[%clk 0:01:00.9]} 29. Rxc3 {[%clk 0:00:07.8]}
29... Qxf1+ {[%clk 0:00:59.1]} 30. Kh2 {[%clk 0:00:08.4]} 30... bxc3 {[%clk
0:01:01]} 31. Qxc3 {[%clk 0:00:07.7]} 31... Qxf2+ {[%clk 0:01:00]} 32. Kh1
{[%clk 0:00:08.8]} 32... Be2 {[%clk 0:00:58.2]} 33. Qc8+ {[%clk 0:00:07.6]}
33... Nf8 {[%clk 0:00:57.4]} 34. Qxf8+ {[%clk 0:00:07.8]} 34... Kxf8 {[%clk
0:00:53.5]} 1/2-1/2